bitfinex-derivatives/quotes_BTCF0:USTF0_20241208
["timestamp","ask_amount","ask_price","bid_price","bid_amount"]
[1733629808327,0.00109733,100020.0,100010.0,1.00572838]
[1733629808522,0.42475377,100020.0,100010.0,0.88077194]
[1733629808726,0.45130729,100020.0,100010.0,1.14040712]
[1733629808930,0.63280714,100020.0,100010.0,1.14040712]
[1733629809132,0.63280714,100020.0,100010.0,1.14190466]
[1733629809332,0.63280714,100020.0,100010.0,1.2047611]
[1733629809528,0.63280714,100020.0,100010.0,1.50445588]
[1733629809737,0.63280714,100020.0,100010.0,1.50770897]
[1733629809940,0.63280714,100020.0,100010.0,1.20801419]
[1733629810439,0.51380729,100020.0,100010.0,1.20801419]
[1733629810834,0.51380729,100020.0,100010.0,1.20651665]
[1733629811033,0.12190729,100020.0,100010.0,1.36935809]
[1733629811236,0.03249733,100020.0,100010.0,1.69960165]
[1733629811534,0.03249733,100020.0,100010.0,1.73110165]
[1733629811730,0.12190588,100020.0,100010.0,1.73110165]
[1733629811932,0.121908,100020.0,100010.0,1.73110165]
[1733629812138,0.12190814,100020.0,100010.0,1.73110165]
[1733629812330,0.03249733,100020.0,100010.0,1.73110165]
[1733629812732,0.12190801,100020.0,100010.0,1.73110165]
[1733629813035,0.03249733,100020.0,100010.0,1.73110165]
[1733629813437,0.12190864,100020.0,100010.0,1.73110165]
[1733629813746,0.60501359,100030.0,100010.0,1.37148147]
[1733629813940,0.60001359,100030.0,100020.0,0.72361053]
[1733629814242,0.60001359,100030.0,100020.0,1.08515899]
[1733629815237,0.60001359,100030.0,100020.0,1.08366167]
[1733629815442,0.60001359,100030.0,100020.0,1.08515893]
[1733629815639,0.60001359,100030.0,100020.0,1.14801537]
[1733629815843,0.20941359,100030.0,100020.0,1.60878993]
[1733629816052,0.09043629,100030.0,100020.0,1.70668293]
[1733629816358,0.08941453,100030.0,100020.0,1.70868209]
[1733629816531,0.30402868,100040.0,100020.0,1.70868209]
[1733629816532,0.15519374,100040.0,100020.0,1.70868209]
[1733629816732,0.20850894,100040.0,100030.0,0.36241179]
[1733629816941,0.20850894,100040.0,100030.0,0.75675908]
[1733629817450,0.20850894,100040.0,100030.0,0.85822495]
[1733629818843,0.20850894,100040.0,100030.0,0.86022495]
[1733629819239,0.08950909,100040.0,100030.0,1.21981955]
[1733629819741,9.389e-05,100040.0,100030.0,1.21981955]
[1733629820349,9.389e-05,100040.0,100030.0,1.22996461]
[1733629821951,0.08950909,100040.0,100030.0,0.85545203]
[1733629823842,0.08950909,100040.0,100030.0,0.85395616]
[1733629824343,9.389e-05,100040.0,100030.0,0.85395616]
[1733629826249,9.389e-05,100040.0,100030.0,0.85395591]
[1733629827854,0.08950909,100040.0,100030.0,0.45513313]
[1733629828849,0.45030909,100040.0,100030.0,0.25950669]
[1733629829050,0.54646553,100040.0,100030.0,0.24936163]
[1733629829250,0.66546538,100040.0,100030.0,0.42879322]
[1733629829446,0.57605018,100040.0,100030.0,0.42879322]
[1733629830447,0.6653175,100040.0,100030.0,0.18955199]
[1733629831461,0.6683175,100040.0,100030.0,0.18755199]
[1733629831962,0.6683175,100040.0,100030.0,0.18904622]
[1733629832155,0.6703175,100040.0,100030.0,0.18904622]
[1733629832656,0.79274156,100040.0,100030.0,0.0081204]
[1733629833054,0.79274156,100040.0,100030.0,0.00812134]
[1733629833055,0.85242168,100040.0,100030.0,0.00812134]
[1733629833259,1.01361678,100040.0,100020.0,0.18092649]
[1733629833458,0.75461666,100030.0,100020.0,0.0014949]
[1733629833662,0.75461666,100030.0,100010.0,0.48152926]
[1733629833864,0.45005205,100020.0,100010.0,0.48302421]
[1733629834070,0.45005205,100020.0,100010.0,0.49798299]
[1733629834264,0.45005205,100020.0,100010.0,0.43512655]
[1733629834669,0.45005205,100020.0,100010.0,0.49798299]
[1733629834852,0.3608,100020.0,100010.0,0.95355748]
[1733629835853,0.3618,100020.0,100010.0,0.95955748]
[1733629836362,0.3618,100020.0,100010.0,0.6256118]
[1733629836566,0.3618,100020.0,100010.0,0.62710621]
[1733629836769,0.3618,100020.0,100010.0,0.6256118]
[1733629836961,0.3618,100020.0,100010.0,0.62710621]
[1733629838164,0.3618,100020.0,100010.0,0.63702652]
[1733629838368,0.3618,100020.0,100010.0,0.51688145]
[1733629839366,0.001,100020.0,100010.0,0.51688145]
[1733629839661,0.3618,100020.0,100010.0,0.51688145]
[1733629840469,0.001,100020.0,100010.0,0.51688145]
[1733629840669,0.001,100020.0,100010.0,0.33747117]
[1733629840870,0.001,100020.0,100010.0,0.51686679]
[1733629841067,0.001,100020.0,100010.0,0.97222309]
[1733629841767,0.001,100020.0,100010.0,1.33302309]
[1733629841963,0.001,100020.0,100010.0,1.22596686]
[1733629842173,0.001,100020.0,100010.0,1.64856146]
[1733629842969,0.001,100020.0,100010.0,1.64706705]
[1733629843380,0.001,100020.0,100010.0,1.65206498]
[1733629843577,0.001,100020.0,100010.0,1.64706705]
[1733629843876,0.3618,100020.0,100010.0,1.291265]
[1733629844069,0.3618,100020.0,100010.0,1.1723507]
[1733629844265,0.001,100020.0,100010.0,0.67512293]
[1733629844465,0.001,100020.0,100010.0,0.97715258]
[1733629845378,0.001,100020.0,100010.0,0.98027642]
[1733629846771,0.001,100020.0,100010.0,0.97527844]
[1733629846973,0.001,100020.0,100010.0,0.98027659]
[1733629849978,0.001,100020.0,100010.0,0.5248925]
[1733629853287,0.09025205,100020.0,100010.0,0.52489299]
[1733629855300,0.45105205,100020.0,100010.0,0.52501158]
[1733629855508,0.45105205,100020.0,100010.0,0.5100528]
[1733629855805,0.45105205,100020.0,100010.0,0.33056638]
[1733629856303,0.45105205,100020.0,100010.0,0.63012173]
[1733629856706,0.45105205,100020.0,100010.0,0.56726529]
[1733629856907,0.45105205,100020.0,100010.0,0.63012173]
[1733629857112,0.45105205,100020.0,100010.0,0.50047962]
[1733629857298,0.45105205,100020.0,100010.0,0.6301232]
[1733629857499,0.45105205,100020.0,100010.0,0.96507056]
[1733629857896,0.3618,100020.0,100010.0,0.71627946]
[1733629858111,0.45105205,100020.0,100010.0,0.66304122]
[1733629858303,0.45105205,100020.0,100010.0,1.02263582]
[1733629858911,0.45105205,100020.0,100010.0,0.90255606]
[1733629858912,0.57005659,100020.0,100010.0,0.90255606]
[1733629859206,0.57005659,100020.0,100010.0,0.9654125]
[1733629861401,0.57005659,100020.0,100010.0,0.72589766]
[1733629862306,0.57005659,100020.0,100010.0,1.08549226]
[1733629862714,0.57005659,100020.0,100010.0,1.08722575]
[1733629862921,0.57005659,100020.0,100010.0,1.0872275]
[1733629863413,0.57005659,100020.0,100010.0,0.72613569]
[1733629863414,0.48080454,100020.0,100010.0,0.72613569]
[1733629863706,0.48080454,100020.0,100010.0,0.75843569]
[1733629863707,0.12000454,100020.0,100010.0,0.75843569]
[1733629863908,0.12000454,100020.0,100010.0,0.7920329]
[1733629866417,0.12000454,100020.0,100010.0,0.79203241]
[1733629869713,0.12000454,100020.0,100010.0,0.78241295]
[1733629869918,0.12000454,100020.0,100010.0,0.79203244]
[1733629870916,0.20940218,100020.0,100010.0,0.80698895]
[1733629871118,0.20940218,100020.0,100010.0,1.16508621]
[1733629872921,0.09039764,100020.0,100010.0,1.26548117]
[1733629873318,0.09039764,100020.0,100010.0,1.26548112]
[1733629873521,0.20940218,100020.0,100010.0,1.26697865]
[1733629873714,0.20940218,100020.0,100010.0,1.26548112]
[1733629876122,0.20940218,100020.0,100010.0,0.86702836]
[1733629876321,0.20940218,100020.0,100010.0,0.80417192]
[1733629876522,0.20940218,100020.0,100010.0,0.86702836]
[1733629877015,0.20940218,100020.0,100010.0,0.85740871]
[1733629877217,0.20940218,100020.0,100010.0,0.86702838]
[1733629880021,0.20940218,100020.0,100010.0,0.85890626]
[1733629880327,0.20940218,100020.0,100010.0,0.86702839]
[1733629882727,0.20940218,100020.0,100010.0,0.86579506]
[1733629884218,0.20940218,100020.0,100010.0,0.85083855]
[1733629885126,0.57020218,100020.0,100010.0,0.85083855]
[1733629885426,0.20940218,100020.0,100010.0,0.85083855]
[1733629885628,0.20940218,100020.0,100010.0,1.15056031]
[1733629885834,0.57020218,100020.0,100010.0,0.85083855]
[1733629886025,0.20940218,100020.0,100010.0,1.26601943]
[1733629887332,0.20940218,100020.0,100010.0,1.25639975]
[1733629887526,0.20940218,100020.0,100010.0,1.26610246]
[1733629887935,0.20940218,100020.0,100010.0,1.16574681]
[1733629888527,0.57020218,100020.0,100010.0,1.16574681]
[1733629891228,0.57020218,100020.0,100010.0,1.56395582]
[1733629891625,0.57020218,100020.0,100010.0,1.16424892]
[1733629891830,0.57020218,100020.0,100010.0,1.56425836]
[1733629892026,0.57020218,100020.0,100010.0,1.56387854]
[1733629892726,0.57020218,100020.0,100010.0,1.26415938]
[1733629893225,0.57020218,100020.0,100010.0,1.56395523]
[1733629893427,0.57020218,100020.0,100010.0,1.26415938]
[1733629893732,0.48080454,100020.0,100010.0,0.86452976]
[1733629893935,0.48080454,100020.0,100010.0,0.86452979]
[1733629894320,0.48080454,100020.0,100010.0,1.26405422]
[1733629895029,0.57029542,100020.0,100010.0,1.26405422]
[1733629896327,0.20949542,100020.0,100010.0,1.26405422]
[1733629896528,0.57029542,100020.0,100010.0,1.26405422]
[1733629897637,0.57029542,100020.0,100010.0,1.26372129]
[1733629898432,0.20949542,100020.0,100010.0,1.26372129]
[1733629899637,0.20949542,100020.0,100010.0,1.26372108]
[1733629900236,0.09049088,100020.0,100010.0,1.72450608]
[1733629900432,0.09047969,100020.0,100010.0,1.45816792]
[1733629900638,0.57428889,100030.0,100010.0,2.33890458]
[1733629900839,0.56928889,100030.0,100020.0,0.48545912]
[1733629901139,0.56928889,100030.0,100020.0,1.24340885]
[1733629901430,0.45028435,100030.0,100020.0,1.34338885]
[1733629901839,0.45028435,100030.0,100020.0,1.28053241]
[1733629902032,0.45028435,100030.0,100020.0,1.28153241]
[1733629902432,0.56928889,100030.0,100020.0,1.28302979]
[1733629902633,0.45028435,100030.0,100020.0,1.2796128]
[1733629903032,0.56928889,100030.0,100020.0,1.1814918]
[1733629903239,0.56928889,100030.0,100020.0,1.11863536]
[1733629903539,0.56928889,100030.0,100020.0,1.1814918]
[1733629904644,0.56928889,100030.0,100020.0,1.0815118]
[1733629904833,0.63368889,100030.0,100020.0,1.01865536]
[1733629905145,0.69654533,100030.0,100020.0,0.88356862]
[1733629905344,0.78701666,100030.0,100020.0,0.25027109]
[1733629905542,0.66801212,100030.0,100020.0,0.42852022]
[1733629907232,0.67807058,100030.0,100020.0,0.42852022]
[1733629907844,0.67807058,100030.0,100020.0,0.42852038]
[1733629908931,0.67807058,100030.0,100020.0,0.43001766]
[1733629910134,0.7972578,100030.0,100020.0,0.43001766]
[1733629911233,0.4364578,100030.0,100020.0,0.43001766]
[1733629911438,0.7972578,100030.0,100020.0,0.43001766]
[1733629912236,0.7972578,100030.0,100020.0,0.54988651]
[1733629913035,0.7972578,100030.0,100020.0,0.61274295]
[1733629913537,0.7972578,100030.0,100020.0,0.31312759]
[1733629913731,0.7972578,100030.0,100020.0,0.94798018]
[1733629914332,0.7972578,100030.0,100020.0,0.61124567]
[1733629914632,0.7972578,100030.0,100020.0,0.94661328]
[1733629915036,0.7972578,100030.0,100020.0,0.61124567]
[1733629915233,0.7972578,100030.0,100020.0,0.88358429]
[1733629915433,0.7972578,100030.0,100020.0,0.88367857]
[1733629916542,0.7972578,100030.0,100020.0,0.54838923]
[1733629917141,0.7972578,100030.0,100020.0,0.24877387]
[1733629918037,0.67807058,100030.0,100020.0,0.42851225]
[1733629918441,0.67807058,100030.0,100020.0,0.42851223]
[1733629919937,0.61521414,100030.0,100020.0,0.42851223]
[1733629920934,0.61521414,100030.0,100020.0,0.42851209]
[1733629921137,0.61521414,100030.0,100020.0,0.49136853]
[1733629921339,0.61521414,100030.0,100020.0,0.49136096]
[1733629921545,0.70322161,100030.0,100020.0,0.31312733]
[1733629923144,0.64687058,100030.0,100020.0,0.25027089]
[1733629923347,0.67767058,100030.0,100020.0,0.24877365]
[1733629923848,0.67767058,100030.0,100020.0,0.24877371]
[1733629925154,0.64811754,100030.0,100020.0,0.24877371]
[1733629926350,0.5852611,100030.0,100020.0,0.24877371]
[1733629927149,0.5852611,100030.0,100020.0,0.24065164]
[1733629927346,0.5852611,100030.0,100020.0,0.24877371]
[1733629930547,0.5852611,100030.0,100020.0,0.24065164]
[1733629930747,0.5852611,100030.0,100020.0,0.24877373]
[1733629931554,0.73401678,100030.0,100020.0,0.24877373]
[1733629931755,0.61481414,100030.0,100020.0,0.24877373]
[1733629932542,0.25401414,100030.0,100020.0,0.24877373]
[1733629932746,0.61481414,100030.0,100020.0,0.24877373]
[1733629933254,0.61481414,100030.0,100020.0,0.42856441]
[1733629933457,0.61481414,100030.0,100020.0,0.24877373]
[1733629934063,0.61481414,100030.0,100020.0,0.24065164]
[1733629934355,0.61481414,100030.0,100020.0,0.248774]
[1733629934564,0.79349411,100030.0,100020.0,0.248774]
[1733629935553,0.79349411,100030.0,100020.0,0.54988744]
[1733629935758,0.79349411,100030.0,100020.0,0.54838936]
[1733629935948,0.79349411,100030.0,100020.0,0.42862652]
[1733629936846,0.70759487,100030.0,100020.0,0.42862173]
[1733629937857,0.70759487,100030.0,100020.0,0.18897046]
[1733629940356,0.70759487,100030.0,100020.0,0.00912273]
[1733629940853,0.70759487,100030.0,100020.0,0.00912287]
[1733629942049,0.70759487,100030.0,100020.0,0.1889706]
[1733629942250,0.70759487,100030.0,100020.0,0.00912287]
[1733629944348,0.70759487,100030.0,100020.0,0.00912284]
[1733629945853,0.70759487,100030.0,100020.0,0.001]
[1733629946163,0.70759487,100030.0,100020.0,0.00912284]
[1733629947162,0.85659668,100030.0,100020.0,0.18897057]
[1733629947559,0.85659668,100030.0,100020.0,0.18084773]
[1733629947762,0.85659668,100030.0,100020.0,0.18897056]
[1733629948062,0.85659668,100030.0,100020.0,0.18084773]
[1733629948262,0.85659668,100030.0,100020.0,0.18897055]
[1733629950562,0.87681112,100030.0,100020.0,0.18897055]
[1733629952660,0.72780931,100030.0,100020.0,0.18897055]
[1733629953062,0.72780931,100030.0,100020.0,0.00912282]
[1733629953264,0.54912934,100030.0,100020.0,0.00412416]
[1733629953464,1.09079454,100030.0,100020.0,8.9e-07]
[1733629953662,1.09079454,100030.0,100010.0,0.23965253]
[1733629953859,0.63550228,100020.0,100010.0,0.24465152]
[1733629954372,0.63550228,100020.0,100010.0,0.00499988]
[1733629954765,0.66532164,100020.0,100010.0,0.00799899]
[1733629954968,0.66532164,100020.0,100010.0,0.003]
[1733629955162,0.69659471,100020.0,100010.0,0.009]
[1733629955362,0.93554538,100020.0,100010.0,0.009]
[1733629955758,0.69659471,100020.0,100010.0,0.009]
[1733629959674,0.69659471,100020.0,100010.0,0.0139994]
[1733629962286,0.66611584,100020.0,100010.0,0.0139994]
[1733629963475,0.81494694,100020.0,100010.0,0.0139994]
[1733629964975,0.81494694,100020.0,100010.0,0.01399936]
[1733629965576,0.81494694,100020.0,100010.0,0.01712396]
[1733629966578,0.66611584,100020.0,100010.0,0.01712396]
[1733629967974,1.02691584,100020.0,100010.0,0.01712396]
[1733629968574,1.17576086,100020.0,100010.0,0.01712396]
[1733629968780,1.17576086,100020.0,100010.0,0.009]
[1733629968982,1.17576086,100020.0,100010.0,0.01712396]
[1733629970283,0.84831288,100020.0,100010.0,0.01712396]
[1733629970581,0.8680767,100020.0,100010.0,0.01712396]
[1733629971482,1.07715853,100020.0,100010.0,0.01712396]
[1733629971976,0.1464767,100020.0,100010.0,0.01712396]
[1733629972179,1.29811554,100020.0,100010.0,0.0121246]
[1733629972376,1.07715853,100020.0,100010.0,0.0121246]
[1733629972981,1.3161092,100020.0,100010.0,0.0121246]
[1733629974488,1.37896564,100020.0,100010.0,6e-07]
[1733629974789,1.3161092,100020.0,100000.0,0.11007426]
[1733629974986,0.56715925,100010.0,100000.0,0.10007426]
[1733629975290,0.51855644,100010.0,100000.0,0.10007426]
[1733629976476,0.76002495,100010.0,100000.0,0.10007426]
[1733629976881,0.76002495,100010.0,100000.0,0.10207426]
[1733629977181,0.76002495,100010.0,100000.0,0.10407426]
[1733629977182,0.90886742,100010.0,100000.0,0.10407426]
[1733629977380,0.76002495,100010.0,100000.0,0.10407426]
[1733629977581,0.76002495,100010.0,100000.0,0.10207426]
[1733629977787,0.76102495,100010.0,100000.0,0.10407426]
[1733629978388,0.63531207,100010.0,100000.0,0.10407426]
[1733629978692,0.69816851,100010.0,100000.0,0.10407426]
[1733629981294,0.70828509,100010.0,100000.0,0.10407426]
[1733629981995,0.70828509,100010.0,100000.0,0.10907419]
[1733629983598,0.64542865,100010.0,100000.0,0.10907419]
[1733629983789,0.55052865,100010.0,100000.0,0.10907419]
[1733629983995,0.61338509,100010.0,100000.0,0.14237419]
[1733629984491,0.61338509,100010.0,100000.0,0.13737426]
[1733629984693,0.61338509,100010.0,100000.0,0.14237393]
[1733629985087,0.57095265,100010.0,100000.0,0.14237393]
[1733629985287,0.57104051,100010.0,100000.0,0.23763037]
[1733629985488,0.63390215,100010.0,100000.0,0.17477393]
[1733629986194,0.63390215,100010.0,100000.0,0.23763037]
[1733629986195,0.57104571,100010.0,100000.0,0.23763037]
[1733629986393,0.57104571,100010.0,100000.0,0.17477393]
[1733629986584,0.57104571,100010.0,100000.0,0.17789853]
[1733629987297,0.21024571,100010.0,100000.0,0.17789853]
[1733629987596,1.08074689,100010.0,100000.0,0.17789853]
[1733629988295,1.08074689,100010.0,100000.0,0.16977426]
[1733629988495,1.14360333,100010.0,100000.0,0.17789823]
[1733629988798,1.14360333,100010.0,100000.0,0.14549823]
[1733629988799,0.99470215,100010.0,100000.0,0.14549823]
[1733629990996,1.14353597,100010.0,100000.0,0.14549823]
[1733629992194,1.08389669,100010.0,100000.0,0.38514987]
[1733629993395,0.72309669,100010.0,100000.0,0.38514987]
[1733629993601,1.08389669,100010.0,100000.0,0.38514987]
[1733629993993,1.02104025,100010.0,100000.0,0.38514987]
[1733629994391,1.08389669,100010.0,100000.0,0.38514987]
[1733629996902,1.08389669,100010.0,100000.0,0.35184987]
[1733629997103,1.14569669,100010.0,100000.0,0.35184987]
[1733629998896,1.26478377,100010.0,100000.0,0.35184987]
[1733629999100,1.02663084,100010.0,100000.0,0.11219823]
[1733629999303,1.20533597,100010.0,100000.0,0.11219823]
[1733629999505,1.02663084,100010.0,100000.0,0.11219823]
[1733629999903,1.05743084,100010.0,100000.0,0.11219823]
[1733630003109,1.05743084,100010.0,100000.0,0.35184987]
[1733630007414,1.08730215,100010.0,100000.0,0.11219823]
[1733630008611,1.08730215,100010.0,100000.0,0.11219845]
[1733630011716,0.90859702,100010.0,100000.0,0.11219845]
[1733630012311,0.99374764,100010.0,100000.0,0.11219845]
[1733630012515,1.05660408,100010.0,100000.0,0.11219845]
[1733630013314,0.87779702,100010.0,100000.0,0.11219845]
[1733630014419,0.87779702,100010.0,100000.0,0.11219832]
[1733630015111,0.81494058,100010.0,100000.0,0.11219832]
[1733630015316,1.20576459,100010.0,100000.0,0.35184996]
[1733630015519,1.20576459,100010.0,100000.0,0.3437259]
[1733630015816,1.20576459,100010.0,100000.0,0.35185001]
[1733630018913,1.06068415,100010.0,100000.0,0.40658234]
[1733630019113,0.87167617,100010.0,100000.0,1.07709203]
[1733630019321,0.87167617,100010.0,100000.0,0.83744039]
[1733630019724,0.87167617,100010.0,100000.0,0.77458395]
[1733630020518,0.87167617,100010.0,100000.0,0.83744039]
[1733630020719,0.99091756,100010.0,100000.0,0.83744039]
[1733630020916,0.63011756,100010.0,100000.0,0.83744039]
[1733630021219,0.57045402,100010.0,100000.0,1.65254851]
[1733630021425,0.45122434,100010.0,100000.0,1.35293315]
[1733630021627,0.45122434,100010.0,100000.0,1.3679236]
[1733630021825,0.45122434,100010.0,100000.0,1.3679234]
[1733630022225,0.45122434,100010.0,100000.0,1.36941136]
[1733630022421,0.45122434,100010.0,100000.0,1.27657116]
[1733630022814,0.45122434,100010.0,100000.0,1.2750832]
[1733630023320,0.09042434,100010.0,100000.0,2.12721055]
[1733630023525,0.001,100010.0,100000.0,2.12721055]
[1733630023826,0.001,100010.0,100000.0,1.82276968]
[1733630024026,0.001,100010.0,100000.0,2.12276968]
[1733630026630,0.001,100010.0,100000.0,2.1216008]
[1733630028831,0.001,100010.0,100000.0,2.12154889]
[1733630029217,0.001,100010.0,100000.0,2.12154706]
[1733630029421,0.001,100010.0,100000.0,2.41251935]
[1733630029628,0.001,100010.0,100000.0,2.4206417]
[1733630030333,0.001,100010.0,100000.0,1.91076154]
[1733630031830,0.001,100010.0,100000.0,1.61076154]
[1733630033629,0.001,100010.0,100000.0,1.61075427]
[1733630035824,0.001,100010.0,100000.0,1.61084815]
[1733630036024,0.001,100010.0,100000.0,1.6027258]
[1733630036225,0.001,100010.0,100000.0,1.61084815]
[1733630037426,0.001,100010.0,100000.0,1.73131867]
[1733630038525,0.001,100010.0,100000.0,2.12104497]
[1733630038723,0.001,100010.0,100000.0,2.12122851]
[1733630040731,0.001,100010.0,100000.0,1.73149977]
[1733630041634,0.001,100010.0,100000.0,1.2310504]
[1733630041821,0.001,100010.0,100000.0,1.35676328]
[1733630042935,0.001,100010.0,100000.0,1.29390684]
[1733630045125,0.001,100010.0,100000.0,1.19092805]
[1733630045427,0.001,100010.0,100000.0,1.10029109]
[1733630045428,0.15232434,100010.0,100000.0,1.10029109]
[1733630045627,0.15232434,100010.0,100000.0,1.1004759]
[1733630045828,0.15232434,100010.0,100000.0,0.77209133]
[1733630046031,0.15232434,100010.0,100000.0,0.83494777]
[1733630046335,0.18442434,100010.0,100000.0,0.83494777]
[1733630046534,0.18442434,100010.0,100000.0,1.16355233]
[1733630047128,0.09042434,100010.0,100000.0,1.32640366]
[1733630047323,0.09042434,100010.0,100000.0,1.35840366]
[1733630047933,0.09042434,100010.0,100000.0,1.71230366]
[1733630048530,0.09042434,100010.0,100000.0,1.77295526]
[1733630050535,0.09042434,100010.0,100000.0,1.64724238]
[1733630050733,0.09042434,100010.0,100000.0,2.17809501]
[1733630050928,0.09042434,100010.0,100000.0,1.69848213]
[1733630051433,0.09042434,100010.0,100000.0,1.82419501]
[1733630052439,0.21365402,100020.0,100000.0,1.46444877]
[1733630052624,0.20865402,100020.0,100010.0,0.42249631]
[1733630052823,0.20865402,100020.0,100010.0,1.16547561]
[1733630054137,0.20865402,100020.0,100010.0,1.16647561]
[1733630054527,0.20865402,100020.0,100010.0,1.52727561]
[1733630054727,0.08942434,100020.0,100010.0,1.75311705]
[1733630054930,0.08942434,100020.0,100010.0,1.69347718]
[1733630055137,0.12422968,100030.0,100010.0,2.56347877]
[1733630055138,0.09442434,100030.0,100010.0,2.56347877]
[1733630055439,0.08942434,100030.0,100020.0,0.84610721]
[1733630055640,0.08942434,100030.0,100020.0,1.58908651]
[1733630056138,0.08942434,100030.0,100020.0,1.29764548]
[1733630056436,0.08942434,100030.0,100020.0,1.59712148]
[1733630057141,0.09342434,100030.0,100020.0,1.59712148]
[1733630057439,0.09542434,100030.0,100020.0,1.59712148]
[1733630058541,0.006,100030.0,100020.0,1.59712148]
[1733630058839,0.006,100030.0,100020.0,1.68582968]
[1733630059140,0.006,100030.0,100020.0,1.68083063]
[1733630059335,0.006,100030.0,100020.0,1.71742804]
[1733630059638,0.006,100030.0,100020.0,2.10630714]
[1733630059854,0.006,100030.0,100020.0,1.74671281]
[1733630060341,0.006,100030.0,100020.0,2.43540715]
[1733630060539,0.006,100030.0,100020.0,2.01666312]
[1733630061240,0.001,100030.0,100020.0,1.86697519]
[1733630061633,0.001,100030.0,100020.0,1.86397519]
[1733630061939,0.001,100030.0,100020.0,1.86291902]
[1733630062236,0.001,100030.0,100020.0,1.23921869]
[1733630062434,0.09042434,100030.0,100020.0,1.20761869]
[1733630062634,0.15482434,100030.0,100020.0,1.20761869]
[1733630062935,0.15482434,100030.0,100020.0,0.85371869]
[1733630064438,0.15482434,100030.0,100020.0,0.49291869]
[1733630064742,0.15482434,100030.0,100020.0,0.4780873]
[1733630064932,0.27405402,100030.0,100020.0,0.25356796]
[1733630065327,0.63485402,100030.0,100020.0,0.25356796]
[1733630066233,0.63485402,100030.0,100020.0,0.09073152]
[1733630066534,0.66595402,100030.0,100020.0,0.07597723]
[1733630067544,0.4573,100030.0,100020.0,0.94121243]
[1733630068440,0.4573,100030.0,100020.0,0.31525086]
[1733630068633,0.54672434,100030.0,100020.0,0.31525086]
[1733630069144,0.4573,100030.0,100020.0,0.31525086]
[1733630069344,0.4573,100030.0,100020.0,0.31525179]
[1733630069735,0.4573,100030.0,100020.0,0.30713007]
[1733630069952,0.4573,100030.0,100020.0,0.31525179]
[1733630070237,0.54672434,100030.0,100020.0,0.31525179]
[1733630071937,0.4573,100030.0,100020.0,0.94112293]
[1733630072435,0.4573,100030.0,100020.0,0.95591197]
[1733630072943,0.4573,100030.0,100020.0,1.01876841]
[1733630073143,0.0965,100030.0,100020.0,0.95591197]
[1733630073341,0.001,100030.0,100020.0,0.87946978]
[1733630073648,0.001,100030.0,100020.0,1.66165224]
[1733630073839,0.001,100030.0,100020.0,1.17513936]
[1733630074040,0.001,100030.0,100020.0,1.30085224]
[1733630074743,0.001,100030.0,100020.0,1.30085162]
[1733630075335,0.001,100030.0,100020.0,1.66165162]
[1733630075538,0.001,100030.0,100020.0,1.75033522]
[1733630076749,0.001,100030.0,100020.0,1.74930927]
[1733630078850,0.001,100030.0,100020.0,1.71820927]
[1733630079345,0.001,100030.0,100020.0,1.62405283]
[1733630079551,0.001,100030.0,100020.0,1.92333199]
[1733630079851,0.001,100030.0,100020.0,1.98618831]
[1733630080550,0.001,100030.0,100020.0,1.92333187]
[1733630081350,0.001,100030.0,100020.0,1.68690915]
[1733630082247,0.3618,100030.0,100020.0,1.6254898]
[1733630082555,0.57045402,100030.0,100020.0,1.11800978]
[1733630083544,0.57045402,100030.0,100020.0,1.05515334]
[1733630084146,0.20965402,100030.0,100020.0,1.11800978]
[1733630084346,0.20965402,100030.0,100020.0,1.11808121]
[1733630086260,0.20965402,100030.0,100020.0,1.10996023]
[1733630086453,0.20965402,100030.0,100020.0,1.11808139]
[1733630086651,0.20963333,100030.0,100020.0,1.22531341]
[1733630086950,0.12022968,100030.0,100020.0,1.22531341]
[1733630088955,0.12022968,100030.0,100020.0,0.86451341]
[1733630089263,0.12022968,100030.0,100020.0,1.22531341]
[1733630090145,0.12022968,100030.0,100020.0,1.2253132]
[1733630090554,0.09041859,100030.0,100020.0,1.28491501]
[1733630091061,0.09041859,100030.0,100020.0,1.22205857]
[1733630094058,0.09041859,100030.0,100020.0,0.86125857]
[1733630094260,0.09041859,100030.0,100020.0,1.22205857]
[1733630095964,0.09041859,100030.0,100020.0,1.22194175]
[1733630096168,0.09041859,100030.0,100020.0,1.2138208]
[1733630096469,0.09041859,100030.0,100020.0,1.22194175]
[1733630096671,0.09041859,100030.0,100020.0,1.61083751]
[1733630096860,0.09041859,100030.0,100020.0,1.62559616]
[1733630097061,0.001,100030.0,100020.0,1.62559571]
[1733630097467,0.09041859,100030.0,100020.0,1.62559571]
[1733630097665,0.26930585,100030.0,100020.0,1.41702195]
[1733630098782,0.26930585,100030.0,100020.0,1.05622195]
[1733630098972,0.26930585,100030.0,100020.0,1.41702195]
[1733630099784,0.63010585,100030.0,100020.0,0.95624695]
[1733630100082,0.32896757,100030.0,100020.0,0.51020398]
[1733630100276,0.32896757,100030.0,100020.0,0.80981436]
[1733630100277,0.68976757,100030.0,100020.0,0.80981436]
[1733630100582,0.68976757,100030.0,100020.0,0.51021924]
[1733630101369,0.68976757,100030.0,100020.0,0.4473628]
[1733630101676,0.68976757,100030.0,100020.0,0.43260415]
[1733630101677,0.81712401,100030.0,100020.0,0.43260415]
[1733630101873,0.84872401,100030.0,100020.0,0.43260415]
[1733630102274,0.78586757,100030.0,100020.0,0.43260415]
[1733630103483,0.79605117,100030.0,100020.0,0.43260415]
[1733630103875,0.78586757,100030.0,100020.0,0.49546059]
[1733630105484,0.60697617,100030.0,100020.0,0.49546059]
[1733630105684,0.57708518,100030.0,100020.0,0.70356304]
[1733630106086,0.57708518,100030.0,100020.0,0.70356344]
[1733630109685,0.57708518,100030.0,100020.0,0.6954414]
[1733630109988,0.57708518,100030.0,100020.0,0.70356344]
[1733630111381,0.66647855,100030.0,100020.0,0.70356344]
[1733630111583,0.66647744,100030.0,100020.0,0.70356344]
[1733630112088,0.57708518,100030.0,100020.0,0.70356344]
[1733630113285,0.66647528,100030.0,100020.0,0.70356344]
[1733630114884,0.57708518,100030.0,100020.0,0.70356344]
[1733630115284,0.6665064,100030.0,100020.0,0.70356344]
[1733630116592,0.6665064,100030.0,100020.0,0.71834409]
[1733630118795,0.6665064,100030.0,100020.0,0.65548765]
[1733630119181,0.6665064,100030.0,100020.0,1.01447011]
[1733630119388,0.6665064,100030.0,100020.0,0.65548765]
[1733630119590,0.6665064,100030.0,100020.0,0.64736561]
[1733630119790,0.6665064,100030.0,100020.0,0.65548723]
[1733630120694,0.72616135,100030.0,100020.0,0.89319563]
[1733630121093,0.72616135,100030.0,100020.0,0.44721166]
[1733630121585,0.72616135,100030.0,100020.0,0.4472216]
[1733630121783,0.72616135,100030.0,100020.0,0.43385425]
[1733630121984,0.72616135,100030.0,100020.0,0.44864456]
[1733630122989,0.72616135,100030.0,100020.0,0.43385425]
[1733630123191,0.72616135,100030.0,100020.0,0.44864815]
[1733630123692,0.72616135,100030.0,100020.0,0.448644]